{"text_format":"1","workbook":"xlsx","n_sheets":6,"sheets":["BIG SIMULATOR","Capa","Simular IRS 2020","Informações 2020","Disclaimer","Ajuda"],"not_rendered":{"charts":0,"images":8,"macros":1,"external_links":0,"defined_names":25,"comments":0,"pivot_tables":0},"unopened":[],"bounds":{"document_bytes":16777216,"sheet_cells":100000,"rows_first":2000,"rows_last":500,"rows_between":2000,"halvings":0,"cell_chars":16384,"cell_head_chars":4096},"cells_cut":0,"cells_raw":0,"read":"whole","date_system":"1900"}

{"sheet":"BIG SIMULATOR","index":0,"n_rows":211,"n_cols":19,"rows_kept":211,"cut":false,"hidden":true,"merged":[[292,10,292,11],[294,7,294,9],[295,7,295,9],[296,7,296,9],[297,7,297,9],[298,7,298,9],[299,7,299,9],[300,7,300,9],[301,7,301,9],[302,7,302,9],[303,7,303,9],[304,7,304,9],[174,5,174,6],[174,7,176,8],[175,5,175,6],[177,7,177,8],[178,7,178,8],[181,5,181,6],[181,7,183,8],[182,5,182,6],[184,7,184,8],[185,7,185,8],[291,7,291,9],[285,7,285,9],[286,7,286,9],[287,7,287,9],[288,7,288,9],[289,7,289,9],[283,7,283,9],[284,7,284,9],[254,7,254,9],[255,7,255,9],[256,7,256,9],[257,7,257,9],[258,7,258,9],[276,7,276,9],[253,7,253,9],[76,38,77,39],[78,38,78,39],[79,38,79,39],[81,36,81,37],[82,36,82,37],[81,38,83,39],[84,38,84,39],[85,38,85,39],[188,30,188,31],[252,7,252,9],[139,30,139,31],[172,7,172,8],[162,7,164,8],[165,7,165,8],[166,7,166,8],[168,7,170,8],[171,7,171,8],[102,15,102,16],[218,30,218,31],[39,42,39,43],[68,42,68,43],[69,42,71,43],[73,42,73,43],[74,42,74,43],[90,16,90,17],[93,16,93,17],[93,20,95,20],[93,21,95,21],[94,16,94,17],[73,38,73,39],[74,38,74,39],[69,36,69,37],[70,36,70,37],[69,40,71,41],[73,40,73,41],[74,40,74,41],[39,38,39,39],[39,40,39,41],[68,38,68,39],[68,40,68,41],[69,38,71,39],[76,36,76,37],[65,36,65,37],[277,10,277,11],[279,7,279,9],[280,7,280,9],[281,7,281,9],[282,7,282,9],[273,7,273,9],[274,7,274,9],[270,7,270,9],[272,7,272,9],[262,10,262,11],[264,7,264,9],[265,7,265,9],[267,7,267,9],[266,7,266,9],[268,7,268,9],[269,7,269,9],[271,7,271,9],[259,7,259,9],[261,7,261,9],[249,10,249,11],[251,7,251,9],[229,5,229,6],[228,5,228,6],[248,7,248,9],[43,16,43,17],[72,16,72,17],[121,2,121,5],[98,10,98,11],[93,10,93,13],[123,14,125,14],[101,2,101,4],[103,2,103,5],[106,2,109,2],[111,2,114,2],[150,2,155,2],[123,2,126,2],[129,2,132,2],[162,5,162,6],[163,5,163,6],[168,5,168,6],[169,5,169,6],[1,4,1,5],[7,16,8,17],[7,18,9,18],[7,19,9,19],[7,20,9,20],[12,8,14,8],[40,16,40,17],[237,5,237,6],[246,8,246,11],[37,30,37,31],[50,30,50,31],[25,30,25,31],[36,30,36,31],[7,21,9,21],[10,0,10,8],[10,30,10,31],[11,30,11,31],[24,16,24,17],[24,30,24,31],[43,20,45,20],[104,25,104,26],[85,5,85,6],[85,10,85,11],[157,2,162,2],[86,5,86,6],[86,10,86,11],[74,30,74,31],[72,30,72,31],[96,10,96,11],[118,21,120,21],[121,10,121,11],[109,12,111,12],[134,12,136,12],[51,30,51,31],[43,21,45,21],[44,16,44,17],[52,16,52,17],[61,30,61,31],[62,42,62,43],[63,42,63,43],[65,38,67,39],[65,40,67,41],[66,36,66,37],[55,42,55,43],[56,42,56,43],[61,42,61,43],[61,40,61,41],[62,38,62,39],[62,40,62,41],[63,38,63,39],[63,40,63,41],[55,38,55,39],[55,40,55,41],[56,38,56,39],[56,40,56,41],[65,42,67,43],[61,38,61,39]]}
[]
[null,null,null,null,null,null,null,null,null,null,null,null,null,"Estado Civil"]
[null,null,null,null,null,null,null,null,null,null,null,null,null,"Solteiro / Viúvo / Divorciado",0]
[null,null,null,null,null,null,null,null,null,null,null,null,null,"Casado / Unido de facto",1]
[]
[]
[null,null,null,null,null,null,null,null,null,null,null,null,null,"Número de Filhos"]
[null,null,null,null,null,null,null,null,null,null,null,null,null,0]
[null,null,null,null,null,null,null,null,null,null,null,null,null,1]
[null,null,null,null,null,null,null,null,null,null,null,null,null,2]
[null,null,null,null,null,null,null,null,null,null,null,null,null,3]
[null,null,null,null,null,null,null,null,null,null,null,null,null,4]
[null,"DESCRIÇÃO",null,null,null,null,2019,2020,null,null,null,null,null,5]
[]
[null,null,null,null,null,null,null,null,null,null,null,null,null,"Número de Ascendentes"]
[null,"RENDIMENTO BRUTO",null,null,null,null,null,null,null,null,null,null,null,0]
[null,"TRABALHO DEPENDENTE",null,null,null,null,{"$f":"H117","v":0},{"$f":"I117","v":0},null,null,null,null,null,1]
[null,"PENSÕES DE VELHICE",null,null,null,null,{"$f":"H135","v":0},{"$f":"I135","v":0},null,null,null,null,null,2]
[null,null,null,null,null,null,null,null,null,null,null,null,null,3]
[null,"TOTAL ",null,null,null,null,{"$f":"G17+G18","v":0},{"$f":"H17+H18","v":0},null,null,null,null,null,4]
[]
[null,"DEDUÇÕES ESPECÍFICAS"]
[null,"TRABALHO DEPENDENTE",null,null,null,null,{"$f":"H119","v":0},{"$f":"I119","v":0},null,null,null,null,null,"Tributação conjunta",1]
[null,null,null,null,null,null,null,null,null,null,null,null,null,"Tributação separada",2]
[]
[null,"PENSÕES",null,null,null,null,{"$f":"H137","v":0},{"$f":"I137","v":0}]
[null,"TOTAL",null,null,null,null,{"$f":"G23+G26","v":0},{"$f":"H23+H26","v":0}]
[]
[null,"RENDIMENTO COLETÁVEL",null,null,null,null,{"$f":"G20-G27","v":0},{"$f":"H20-H27","v":0}]
[]
[]
[]
[]
[]
[null,"CÁLCULO DO IMPOSTO:"]
[null,"    COEFICIENTE CONJUGAL",null,null,null,null,{"$f":"IF((IF(C87=1,G29,IF(AND(C96=2,C87=2),G29,G29/2)))<0,0,(IF(C87=1,G29,IF(AND(C96=2,C87=2),G29,G29/2))))","v":0},{"$f":"IF((IF(C87=1,H29,IF(AND(C96=2,C87=2),H29,H29/2)))<0,0,(IF(C87=1,H29,IF(AND(C96=2,C87=2),H29,H29/2))))","v":0}]
[null,"    TAXA A APLICAR",null,null,null,null,{"$f":"VLOOKUP($G$36,$K$102:$N$108,3,TRUE)","v":0.14499999999999999},{"$f":"VLOOKUP($H$36,$K$127:$N$133,3,TRUE)","v":0.14499999999999999}]
[null,"    APLICAÇÃO DE TAXA PROGRESSIVA",null,null,null,null,{"$f":"IFERROR(ROUND(G37*G36,2),\"\")","v":0},{"$f":"IFERROR(ROUND(H37*H36,2),\"\")","v":0}]
[null,"    PARCELA A ABATER",null,null,null,null,{"$f":"VLOOKUP($G$36,$K$102:$N$108,4,TRUE)","v":0},{"$f":"VLOOKUP($H$36,$K$127:$N$133,4,TRUE)","v":0}]
[null,"TAXA DE SOLIDARIEDADE",null,null,null,null,{"$f":"IF($C$87=1,((VLOOKUP(G36,$P$104:$S$106,3,TRUE)*G36)-VLOOKUP(G36,$P$104:$S$106,4,TRUE)),IF(AND($C$87=2,$C$96=1),((VLOOKUP(G36,$P$104:$S$106,3,TRUE)*G36)-VLOOKUP(G36,$P$104:$S$106,4,TRUE))*2,((VLOOKUP(G36,$P$104:$S$106,3,TRUE)*G36)-VLOOKUP(G36,$P$104:$S$106,4,TRUE))))","v":0},{"$f":"IF($C$87=1,((VLOOKUP(H36,$P$104:$S$106,3,TRUE)*H36)-VLOOKUP(H36,$P$104:$S$106,4,TRUE)),IF(AND($C$87=2,$C$96=1),((VLOOKUP(H36,$P$104:$S$106,3,TRUE)*H36)-VLOOKUP(H36,$P$104:$S$106,4,TRUE))*2,((VLOOKUP(H36,$P$104:$S$106,3,TRUE)*H36)-VLOOKUP(H36,$P$104:$S$106,4,TRUE))))","v":0}]
[]
[null,"     SUB-TOTAL",null,null,null,null,{"$f":"IFERROR(ROUND((G38-G39+G40),2),\"\")","v":0},{"$f":"IFERROR(ROUND((H38-H39+H40),2),\"\")","v":0}]
[]
[null,"COLETA",null,null,null,null,{"$f":"IF($C$87=1,G42,IF(AND($C$87=2,$C$96=1),(G38-G39)*2+G40,G38-G39+G40))","v":0},{"$f":"IF($C$87=1,H42,IF(AND($C$87=2,$C$96=1),(H38-H39)*2+H40,H38-H39+H40))","v":0}]
[]
[null,"DEDUÇÕES À COLECTA"]
[null,"DEDUÇÕES DEPENDENTES E ASCENDENTES",null,null,null,null,{"$f":"G159+G160","v":0},{"$f":"H159+H160","v":0}]
[null,"DESPESAS GERAIS",null,null,null,null,{"$f":"IF(C87=1,IF(C90<>0,IF(0.45*H91>335,335,0.45*H91),IF(0.35*H91>250,250,0.35*H91)),IF(C96=1,IF(0.35*H91>500,500,0.35*H91),IF(0.35*H91>250,250,0.35*H91)))","v":0},{"$f":"IF(C87=1,IF(C90<>0,IF(0.45*H91>335,335,0.45*H91),IF(0.35*H91>250,250,0.35*H91)),IF(C96=1,IF(0.35*H91>500,500,0.35*H91),IF(0.35*H91>250,250,0.35*H91)))","v":0}]
[]
[null,"DESPESAS DE SAÚDE",null,null,null,null,{"$f":"IF(C87=1,IF(H86*0.15>1000,1000,0.15*H86),IF(C96=2,IF(H86*0.075>500,500,0.075*H86),IF(H86*0.15>1000,1000,0.15*H86)))","v":0},{"$f":"IF(C87=1,IF(H86*0.15>1000,1000,0.15*H86),IF(C96=2,IF(H86*0.075>500,500,0.075*H86),IF(H86*0.15>1000,1000,0.15*H86)))","v":0}]
[null,"DESPESAS DE EDUCAÇÃO",null,null,null,null,{"$f":"IF($C$87=1,IF($H$87*0.3>800,800,0.3*$H$87),IF($C$96=2,IF($H$87*0.15>400,400,0.15*$H$87),IF($H$87*0.3>800,800,0.3*$H$87)))","v":0},{"$f":"IF($C$87=1,IF($H$87*0.3>800,800,0.3*$H$87),IF($C$96=2,IF($H$87*0.15>400,400,0.15*$H$87),IF($H$87*0.3>800,800,0.3*$H$87)))","v":0}]
[null,"ENCARGOS COM IMÓVEIS - JUROS",null,null,null,null,{"$f":"IF($C$95<=2011,IF($C$87=1,IF(G36>30000,IF($H$88*0.15>296,296,$H$88*0.15),IF(0.15*$H$88>VLOOKUP(G36,$F$172:$I$173,3,TRUE),VLOOKUP(G36,$F$172:$I$173,3,TRUE),0.15*$H$88)),IF($C$96=2,IF(G36>30000,IF($H$88*0.075>148,148,$H$88*0.075),IF(0.075*$H$88>0.5*VLOOKUP(G36,$F$172:$I$173,3,TRUE),0.5*VLOOKUP(G36,$F$172:$I$173,3,TRUE),0.075*$H$88)),IF($C$96=1,IF(G36>30000,IF($H$88*0.15>296,296,$H$88*0.15),IF(0.15*$H$88>VLOOKUP(G36,$F$172:$I$173,3,TRUE),VLOOKUP(G36,$F$172:$I$173,3,TRUE),0.15*$H$88)),0))))","v":0},{"$f":"IF($C$95<=2011,IF($C$87=1,IF(H36>30000,IF($H$88*0.15>296,296,$H$88*0.15),IF(0.15*$H$88>VLOOKUP(H36,$F$185:$I$186,3,TRUE),VLOOKUP(H36,$F$185:$I$186,3,TRUE),0.15*$H$88)),IF($C$96=2,IF(H36>30000,IF($H$88*0.075>148,148,$H$88*0.075),IF(0.075*$H$88>0.5*VLOOKUP(H36,$F$185:$I$186,3,TRUE),0.5*VLOOKUP(H36,$F$185:$I$186,3,TRUE),0.075*$H$88)),IF($C$96=1,IF(H36>30000,IF($H$88*0.15>296,296,$H$88*0.15),IF(0.15*$H$88>VLOOKUP(H36,$F$185:$I$186,3,TRUE),VLOOKUP(H36,$F$185:$I$186,3,TRUE),0.15*$H$88)),0))))","v":0}]
[null,"RENDAS",null,null,null,null,{"$f":"IF($C$87=1,IF(G36>30000,IF($H$89*0.15>502,502,$H$89*0.15),IF(0.15*$H$89>VLOOKUP(G36,$F$166:$I$167,3,TRUE),VLOOKUP(G36,$F$166:$I$167,3,TRUE),0.15*$H$89)),IF($C$96=2,IF(G36>30000,IF($H$89*0.075>251,251,$H$89*0.075),IF(0.075*$H$89>0.5*VLOOKUP(G36,$F$166:$I$167,3,TRUE),0.5*VLOOKUP(G36,$F$166:$I$167,3,TRUE),0.075*$H$89)),IF(G36>30000,IF($H$89*0.15>502,502,$H$89*0.15),IF(0.15*$H$89>VLOOKUP(G36,$F$166:$I$167,3,TRUE),VLOOKUP(G36,$F$166:$I$167,3,TRUE),0.15*$H$89))))","v":0},{"$f":"IF($C$87=1,IF(H36>30000,IF($H$89*0.15>502,502,$H$89*0.15),IF(0.15*$H$89>VLOOKUP(H36,$F$178:$I$179,3,TRUE),VLOOKUP(H36,$F$178:$I$179,3,TRUE),0.15*$H$89)),IF($C$96=2,IF(H36>30000,IF($H$89*0.075>251,251,$H$89*0.075),IF(0.075*$H$89>0.5*VLOOKUP(H36,$F$178:$I$179,3,TRUE),0.5*VLOOKUP(H36,$F$178:$I$179,3,TRUE),0.075*$H$89)),IF(H36>30000,IF($H$89*0.15>502,502,$H$89*0.15),IF(0.15*$H$89>VLOOKUP(H36,$F$178:$I$179,3,TRUE),VLOOKUP(H36,$F$178:$I$179,3,TRUE),0.15*$H$89))))","v":0}]
[null,"PENSÃO DE ALIMENTOS",null,null,null,null,{"$f":"0.2*H90","v":0},{"$f":"0.2*H90","v":0}]
[null,"TOTAL (SAUDE; EDUCAÇÃO; IMOVEIS; RENDAS; PENSÕES DE ALIMENTOS)",null,null,null,null,{"$f":"SUM(G50:G54)","v":0},{"$f":"SUM(H50:H54)","v":0}]
[null,"CONTRIBUIÇÕES PARA PPR",null,null,null,null,{"$f":"IF(G18=0,IF('Simular IRS 2020'!F18<35,IF(0.2*'BIG SIMULATOR'!H92>400,400,0.2*'BIG SIMULATOR'!H92),IF(AND('Simular IRS 2020'!F18>=35,'Simular IRS 2020'!F18<=50),IF(0.2*'BIG SIMULATOR'!H92>350,350,0.2*'BIG SIMULATOR'!H92),IF(0.2*'BIG SIMULATOR'!H92>300,300,0.2*'BIG SIMULATOR'!H92)))+IF('Simular IRS 2020'!F20<35,IF(0.2*'BIG SIMULATOR'!H93>400,400,0.2*'BIG SIMULATOR'!H93),IF(AND('Simular IRS 2020'!F20>=35,'Simular IRS 2020'!F20<=50),IF(0.2*'BIG SIMULATOR'!H93>350,350,0.2*'BIG SIMULATOR'!H93),IF(0.2*'BIG SIMULATOR'!H93>300,300,0.2*'BIG SIMULATOR'!H93))),0)","v":0},{"$f":"IF(H18=0,IF('Simular IRS 2020'!F18<35,IF(0.2*'BIG SIMULATOR'!H92>400,400,0.2*'BIG SIMULATOR'!H92),IF(AND('Simular IRS 2020'!F18>=35,'Simular IRS 2020'!F18<=50),IF(0.2*'BIG SIMULATOR'!H92>350,350,0.2*'BIG SIMULATOR'!H92),IF(0.2*'BIG SIMULATOR'!H92>300,300,0.2*'BIG SIMULATOR'!H92)))+IF('Simular IRS 2020'!F20<35,IF(0.2*'BIG SIMULATOR'!H93>400,400,0.2*'BIG SIMULATOR'!H93),IF(AND('Simular IRS 2020'!F20>=35,'Simular IRS 2020'!F20<=50),IF(0.2*'BIG SIMULATOR'!H93>350,350,0.2*'BIG SIMULATOR'!H93),IF(0.2*'BIG SIMULATOR'!H93>300,300,0.2*'BIG SIMULATOR'!H93))),0)","v":0}]
[null,"ENCARGOS COM DONATIVOS",null,null,null,null,{"$f":"IF(0.25*H94*1.3>0.15*G44,0.15*G44,0.25*H94*1.3)","v":0},{"$f":"IF(0.25*H94*1.3>0.15*H44,0.15*H44,0.25*H94*1.3)","v":0}]
[null,"TOTAL (EBF)",null,null,null,null,{"$f":"SUM(G56:G57)","v":0},{"$f":"SUM(H56:H57)","v":0}]
[]
[null,"LIMITE OU SOMA",null,null,null,null,{"$f":"IF($C$87=1,MIN(G55+G58,VLOOKUP(G36,$K$113:$M$115,3,TRUE)),IF($C$96=2,MIN(G55+G58,0.5*VLOOKUP(G36,$K$113:$M$115,3,TRUE)),MIN(G55+G58,VLOOKUP(G36,$K$113:$M$115,3,TRUE))))","v":0},{"$f":"IF($C$87=1,MIN(H55+H58,VLOOKUP(H36,$K$138:$M$140,3,TRUE)),IF($C$96=2,MIN(H55+H58,0.5*VLOOKUP(H36,$K$138:$M$140,3,TRUE)),MIN(H55+H58,VLOOKUP(H36,$K$138:$M$140,3,TRUE))))","v":0}]
[null,null,null,null,null,null,null,null,null,null,"ME na Trib. Conjunta"]
[]
[null,"TOTAL DAS DEDUÇÕES",null,null,null,null,{"$f":"MIN(G47+G60+G48,G44)","v":0},{"$f":"MIN(H47+H60+H48,H44)","v":0}]
[null,null,null,null,null,null,null,null,null,null,2019,null,2020]
[null,"IMPOSTO APURADO",null,null,null,null,{"$f":"IF(G44-G63<0,0,G44-G63)","v":0},{"$f":"IF(H44-H63<0,0,H44-H63)","v":0},null,null,"ME Garantido SPA?","Diferença","ME Garantido SPA?","Diferença"]
[null,null,null,null,null,null,null,null,null,null,{"$f":"IF((M86+M88)-G65/(G20-G27)*(M86+M88-H110-H127)>G73,\"Sim\",\"Não\")","v":{"$error":"#DIV/0!"}},{"$f":"IF(K66=\"Sim\",IF(M86+M88>G73,(M86+M88-G65/(G20-G27)*(M86+M88-H110-H127)-G73),G65/(G20-G27)*(M86+M88-H110-H127)),IF(M86+M88>G73,(M86+M88-G65/(G20-G27)*(M86+M88-H110-H127)-G73),G65/(G20-G27)*(M86+M88-H110-H127))*-1)","v":{"$error":"#DIV/0!"}},{"$f":"IF((M86+M88)-H65/(G20-G27)*(M86+M88-I110-I127)>H73,\"Sim\",\"Não\")","v":{"$error":"#DIV/0!"}},{"$f":"IF(M66=\"Sim\",IF(M86+M88>H73,(M86+M88-H65/(H20-H27)*(M86+M88-I110-I127)-H73),H65/(H20-H27)*(M86+M88-I110-I127)),IF(M86+M88>H73,(M86+M88-H65/(H20-H27)*(M86+M88-I110-I127)-H73),H65/(H20-H27)*(M86+M88-I110-I127))*-1)","v":{"$error":"#DIV/0!"}}]
[null,null,null,null,null,null,null,null,null,null,"ME Garantido SPB?",null,"ME Garantido SPB?"]
[null,null,null,null,null,null,null,null,null,null,{"$f":"IF((N86+N88)-G65/(G20-G27)*(N86+N88-H115-H133)>G73,\"Sim\",\"Não\")","v":{"$error":"#DIV/0!"}},{"$f":"IF(K68=\"Sim\",IF(N86+N88>G73,(N86+N88-G65/(G20-G27)*(N86+N88-H115-H133)-G73),G65/(G20-G27)*(N86+N88-H115-H133)),IF(N86+N88>G73,(N86+N88-G65/(G20-G27)*(N86+N88-H115-H133)-G73),G65/(G20-G27)*(N86+N88-H115-H133))*-1)","v":{"$error":"#DIV/0!"}},{"$f":"IF((N86+N88)-H65/(G20-G27)*(N86+N88-I115-I133)>H73,\"Sim\",\"Não\")","v":{"$error":"#DIV/0!"}},{"$f":"IF(M68=\"Sim\",IF(N86+N88>H73,(N86+N88-H65/(H20-H27)*(N86+N88-I115-I133)-H73),H65/(H20-H27)*(N86+N88-I115-I133)),IF(N86+N88>H73,(N86+N88-H65/(H20-H27)*(N86+N88-I115-I133)-H73),H65/(H20-H27)*(N86+N88-I115-I133))*-1)","v":{"$error":"#DIV/0!"}}]
[]
[null,null,null,null,null,null,null,null,null,null,"Soma",{"$f":"IF(L66+L68<0,(L66+L68)*-1,0)","v":{"$error":"#DIV/0!"}},null,{"$f":"IF(N66+N68<0,(N66+N68)*-1,0)","v":{"$error":"#DIV/0!"}}]
[]
[null,"       RENDIMENTO LÍQUIDO",null,null,null,null,{"$f":"G20-G65","v":0},{"$f":"H20-H65","v":0},null,null,"ME Não Casado",{"$f":"IF(G74=\"Não\",0,IF(G20>G73,G73-G72,G65))","v":0}]
[null,"       MÍNIMO DE EXISTÊNCIA",null,null,null,null,{"$f":"K82*1.5*14","v":9150.9599999999991},{"$f":"L82*1.5*14","v":9215.01},null,null,"ME Casado Tsep",{"$f":"IF(G74=\"Não\",0,IF(G20>G73,G73-G72,G65))","v":0}]
[null,"       APLICAÇÃO DE MÍNIMO DE EXISTÊNCIA?",null,null,null,null,{"$f":"IFERROR(IF(AND($C$87=2,$C$96=2,G72<G73),\"Sim\",IF(AND($C$87=1,G72<G73),\"Sim\",IF(AND($C$87=2,$C$96=1,L70<>0),\"Sim\",\"Não\"))),\"N/A\")","v":"Sim"},{"$f":"IFERROR(IF(AND($C$87=2,$C$96=2,H72<H73),\"Sim\",IF(AND($C$87=1,H72<H73),\"Sim\",IF(AND($C$87=2,$C$96=1,N70<>0),\"Sim\",\"Não\"))),\"N/A\")","v":"Sim"}]
[null,"       A DECRESCER À COLETA",null,null,null,null,{"$f":"+IF($C$87=1,$L$72,IF(AND($C$87=2,$C$96=2),$L$73,L70))","v":0},{"$f":"+IF($C$87=1,$L$72,IF(AND($C$87=2,$C$96=2),$L$73,N70))","v":0}]
[]
[null,"IMPOSTO APURADO APÓS MÍNIMO DE EXISTÊNCIA",null,null,null,null,{"$f":"G65-G75","v":0},{"$f":"H65-H75","v":0}]
[null,"TAXA EFETIVA",null,null,null,null,{"$f":"IFERROR(#REF!/G20,0)","v":0},{"$f":"IFERROR(#REF!/H20,0)","v":0},null,null,"SMN 2019","SMN 2020"]
[null,null,null,null,null,null,null,null,null,null,{"$f":"600*14","v":8400},{"$f":"635*14","v":8890}]
[null,"RENDIMENTO LÍQUIDO APÓS MÍNIMO DE EXISTÊNCIA",null,null,null,null,{"$f":"G20-G77","v":0},{"$f":"H20-H77","v":0}]
[null,"DIFERENÇA RENDIMENTO LÍQUIDO",null,null,null,null,null,{"$f":"H80-G80","v":0},null,null,"IAS 2019","IAS 2020"]
[null,null,null,null,null,null,null,null,null,null,435.76,438.81]
[]
[null,null,null,null,null,"DEDUÇÕES À COLETA",null,null,null,null,"RENDIMENTO",null,"Sujeito Passivo A","Sujeito Passivo B"]
[]
[null,null,{"$f":"'Simular IRS 2020'!F8","v":0},null,null,"Despesas de saúde",null,{"$f":"'Simular IRS 2020'!G35","v":0},null,null,"RENDIMENTO DO TRABALHO",null,{"$f":"'Simular IRS 2020'!G25","v":0},{"$f":"'Simular IRS 2020'!L25","v":0}]
[null,"Estado Civil: Solteiro (1), Casado (2)",{"$f":"IF(C86=\"Casado / Unido de facto\",2,1)","v":1},null,null,"Despesas de educação",null,{"$f":"'Simular IRS 2020'!G37","v":0}]
[null,"<=3",{"$f":"'Simular IRS 2020'!F12","v":0},null,null,"Encargos com imóveis - juros",null,{"$f":"'Simular IRS 2020'!G42","v":0},null,null,"PENSÕES VELHICE",null,{"$f":"'Simular IRS 2020'!G29","v":0},{"$f":"'Simular IRS 2020'!L29","v":0}]
[null,">3",{"$f":"'Simular IRS 2020'!F14","v":0},null,null,"Rendas",null,{"$f":"'Simular IRS 2020'!G44","v":0}]
[null,"Nº de dependentes*:",{"$f":"C88+C89","v":0},null,null,"Pensão de alimentos",null,{"$f":"'Simular IRS 2020'!G48","v":0},null,null,null,"TOTAL",{"$f":"SUM(M86,N86,M88,N88)","v":0}]
[null,"Nº de ascendentes",{"$f":"'Simular IRS 2020'!F16","v":0},null,null,"Despesas Gerais",null,{"$f":"'Simular IRS 2020'!G46","v":0}]
[null,null,null,null,null,"PPR A",null,{"$f":"'Simular IRS 2020'!G54","v":0}]
[null,null,null,null,null,"PPR B",null,{"$f":"'Simular IRS 2020'!G56","v":0}]
[null,null,null,null,null,"Donativos",null,{"$f":"'Simular IRS 2020'!G58","v":0},null,null,"Taxas IRS e limites dedução à coleta"]
[null,"Ano de contrato",{"$f":"'Simular IRS 2020'!G40","v":0}]
[null,"Tipo de tributação",{"$f":"IF(C97=\"Tributação separada\",2,1)","v":1}]
[null,null,{"$f":"'Simular IRS 2020'!F10","v":0},null,null,null,null,null,null,null,2019,null,"Continente"]
[]
[null,null,null,null,null,null,null,null,null,null,"Rendimento colectável",null,"Taxa","Parcela "]
[null,null,null,null,null,null,null,null,null,null,"(Euros)",null,"(%)","Abater"]
[null,null,null,null,null,null,null,null,null,null,"De","Até",null,"(Euros)",null,"TAXA ADICIONAL DE SOLIDARIEDADE"]
[null,null,"RENDIMENTO",null,null,null,null,null,null,null,0,7091,0.14499999999999999,0]
[null,null,null,null,null,null,null,null,null,null,{"$f":"L102","v":7091},10700,0.23,602.73500000000013,null,"Escalões",null,"Taxa","Parcela"]
[null,null,"Trabalho Dependente - Dedução específica",null,null,null,null,null,null,null,10700,20261,0.28499999999999998,1191.2309999999998,null,0,80000,0,0]
[null,null,null,null,null,null,null,2019,2020,null,20261,25000,0.35,2508.1091899999997,null,80000,250000,2.5000000000000001E-2,2000]
[null,null,null,null,null,null,null,null,null,null,25000,36856,0.37,3008.25,null,250000,9.9999999999999904E+16,0.05,8250]
[null,null,"Sujeito Passivo A",null,"Rendimento do trabalho dependente do sujeito passivo A",null,null,{"$f":"M86","v":0},{"$f":"M86","v":0},null,36856,80640,0.45,5956.6667199999993]
[null,null,null,null,"Contribuições obrigatórias para a SS",null,null,{"$f":"0.11*H107","v":0},{"$f":"0.11*I107","v":0},null,80640,99999999999,0.48,8376.0767999999971]
[null,null,null,null,"Dedução mínima prevista para rendimentos da categoria",null,null,4104,4104]
[null,null,null,null,"Dedução aplicável",null,null,{"$f":"IF(H107>=H109,IF(H108=0,H109,IF(H108>H109,H108,H109)),H107)","v":0},{"$f":"IF(I107>=I109,IF(I108=0,I109,IF(I108>I109,I108,I109)),I107)","v":0},null,null,null,"Limite das deduções à colecta"]
[]
[null,null,"Sujeito Passivo B",null,"Rendimento do trabalho dependente do sujeito passivo B",null,null,{"$f":"N86","v":0},{"$f":"N86","v":0}]
[null,null,null,null,"Contribuições obrigatórias para a SS",null,null,{"$f":"H112*0.11","v":0},{"$f":"I112*0.11","v":0},null,0,7091,9999999]
[null,null,null,null,"Dedução mínima prevista para rendimentos da categoria",null,null,4104,4104,null,{"$f":"L113","v":7091},80640,{"$f":"IF(C90>2,(1+(0.05*C90))*(1000+(1500*((80640-G36)/(80640-7091)))),1000+(1500*((80640-G36)/(80640-7091))))","v":2644.6178737984201}]
[null,null,null,null,"Dedução aplicável",null,null,{"$f":"IF(H112>=H114,IF(H113=0,H114,IF(H113>H114,H113,H114)),H112)","v":0},{"$f":"IF(I112>=I114,IF(I113=0,I114,IF(I113>I114,I113,I114)),I112)","v":0},null,{"$f":"L114","v":80640},99999999999,{"$f":"IF(C90>2,(1+(0.05*C90))*1000,1000)","v":1000}]
[]
[null,null,"TOTAL SP A+B",null,"RENDIMENTO BRUTO DA CATEGORIA",null,null,{"$f":"H107+H112","v":0},{"$f":"I107+I112","v":0}]
[]
[null,null,"TOTAL SP A+B",null,"DEDUÇÃO ESPECÍFICA AOS REND. CATEGORIA ",null,null,{"$f":"H110+H115","v":0},{"$f":"I110+I115","v":0}]
[]
[]
[null,null,"Pensões - Dedução específica",null,null,null,null,null,null,null,2020,null,"Continente"]
[null,null,null,null,null,null,null,2019,2020]
[null,null,"Sujeito Passivo A",null,"Pensões de velhice",null,null,{"$f":"M88","v":0},{"$f":"M88","v":0},null,"Rendimento colectável",null,"Taxa","Parcela "]
[null,null,null,null,"Total de Pensões",null,null,{"$f":"H124","v":0},{"$f":"I124","v":0},null,"(Euros)",null,"(%)","Abater"]
[null,null,null,null,"Dedução mínima prevista para rendimentos da categoria",null,null,4104,4104,null,"De","Até",null,"(Euros)"]
[null,null,null,null,"Dedução aplicável",null,null,{"$f":"IF(H125<4104,H125,4104)","v":0},{"$f":"IF(I125<4104,I125,4104)","v":0},null,0,7112,0.14499999999999999,0]
[null,null,null,null,null,null,null,null,null,null,{"$f":"L127","v":7112},10732,0.23,604.54320500000017]
[null,null,null,null,null,null,null,2019,2020,null,10732,20322,0.28499999999999998,1194.8046929999998]
[null,null,"Sujeito Passivo B",null,"Pensões de velhice",null,null,{"$f":"N88","v":0},{"$f":"N88","v":0},null,20322,25075,0.35,2515.6335175699996]
[null,null,null,null,"Total de Pensões",null,null,{"$f":"H130","v":0},{"$f":"I130","v":0},null,25075,36967,0.37,3017.2747499999996]
[null,null,null,null,"Dedução mínima prevista para rendimentos da categoria",null,null,4104,4104,null,36967,80882,0.45,5974.5367201599993]
[null,null,null,null,"Dedução aplicável",null,null,{"$f":"IF(H131<4104,H131,4104)","v":0},{"$f":"IF(I131<4104,I131,4104)","v":0},null,80882,99999999999,0.48,8401.2050303999968]
[]
[null,null,"TOTAL SP A+B",null,"RENDIMENTO BRUTO DA CATEGORIA",null,null,{"$f":"H130+H124","v":0},{"$f":"I130+I124","v":0},null,null,null,"Limite das deduções à colecta"]
[]
[null,null,"TOTAL SP A+B",null,"DEDUÇÃO ESPECÍFICA AOS REND. CATEGORIA ",null,null,{"$f":"H127+H133","v":0},{"$f":"I127+I133","v":0}]
[null,null,null,null,null,null,null,null,null,null,0,7112,9999999]
[null,null,null,null,null,null,null,null,null,null,{"$f":"L138","v":7112},80882,{"$f":"IF(C90>2,(1+(0.05*C90))*(1000+(1500*((80882-H36)/(80882-7112)))),1000+(1500*((80882-H36)/(80882-7112))))","v":2644.6116307442048}]
[null,null,null,null,null,null,null,null,null,null,{"$f":"L139","v":80882},99999999999,{"$f":"IF(C90>2,(1+(0.05*C90))*1000,1000)","v":1000}]
[null,null,null,null,null,"Número de Dependentes"]
[null,null,null,null,null,"Idade ≤ 3 anos a 31/12",null,{"$f":"C88","v":0}]
[null,null,null,null,null,"Idade > 3 anos a 31/12",null,{"$f":"C89","v":0}]
[null,null,null,null,null,null,null,{"$f":"H142+H143","v":0}]
[null,null,null,null,null,"Número de Ascendentes"]
[null,null,null,null,null,"Ascendentes",null,{"$f":"+C91","v":0}]
[]
[]
[]
[null,null,null,null,null,null,2019,2020]
[]
[null,null,null,null,null,"Dependentes com 3 anos ou menos (sem maj)",726,726]
[null,null,null,null,null,"Dependentes com 3 anos ou menos (com maj)",726,900]
[null,null,null,null,null,"Dependentes com mais de 3 anos",600,600]
[null,null,null,null,null,"Ascendentes (mais do que 1)",525,525]
[null,null,null,null,null,"Ascendentes (apenas 1)",635,635]
[]
[null,null,null,null,null,null,2019,2020]
[null,null,null,null,null,"Dedução dependentes",{"$f":"IF(AND(C87=2,C96=2),(G152/2)*H142+(G154/2)*H143,G152*H142+G154*H143)","v":0},{"$f":"IF(AND(C87=2,C96=2,H144<2),(H152/2)*H142+(H154/2)*H143,IF(AND(C87=2,C96=2,H144>1,H143>=1),(H153/2)*H142+(H154/2)*H143,IF(AND(C87=2,C96=2,H144>1,H143=0),(H152/2)+(H153/2)*(H142-1),IF(AND(C87=2,C96=1,H144<2),H152*H142+H154*H143,IF(AND(C87=2,C96=1,H144>1,H143>=1),H153*H142+H154*H143,IF(AND(C87=2,C96=1,H144>1,H143=0),H152+H153*(H142-1),IF(AND(C87=1,H144<2),H152*H142+H154*H143,IF(H143>=1,H153*H142+H154*H143,IF(H143=0,H152+H153*(H142-1))))))))))","v":0}]
[null,null,null,null,null,"Dedução ascendentes",{"$f":"IF(C96=2,IF(C91=0,0,IF(C91=1,G156/2,(G155*C91)/2)),IF(C91=0,0,IF(C91=1,G156,(G155*C91))))","v":0},{"$f":"IF(C96=2,IF(C91=0,0,IF(C91=1,H156/2,(H155*C91)/2)),IF(C91=0,0,IF(C91=1,H156,(H155*C91))))","v":0}]
[]
[]
[null,null,null,null,null,"Rendimento colectável",null,"Limite Dedução Rendas 2019"]
[null,null,null,null,null,"(Euros)"]
[null,null,null,null,null,"De","Até"]
[null,null,null,null,null,0,7091,800]
[null,null,null,null,null,{"$f":"G166","v":7091},30000,{"$f":"502+((800-502)*((30000-G36)/(30000-F167)))","v":892.23964380811037}]
[]
[null,null,null,null,null,"Rendimento colectável",null,"Limite Dedução Juros 2019"]
[null,null,null,null,null,"(Euros)"]
[null,null,null,null,null,"De","Até"]
[null,null,null,null,null,0,7091,450]
[null,null,null,null,null,{"$f":"G172","v":7091},30000,{"$f":"296+((450-296)*((30000-G36)/(30000-F173)))","v":497.66746693439256}]
[]
[null,null,null,null,null,"Rendimento colectável",null,"Limite Dedução Rendas 2020"]
[null,null,null,null,null,"(Euros)"]
[null,null,null,null,null,"De","Até"]
[null,null,null,null,null,0,7112,800]
[null,null,null,null,null,{"$f":"G178","v":7112},30000,{"$f":"502+((800-502)*((30000-H36)/(30000-F179)))","v":892.59769311429568}]
[]
[]
[null,null,null,null,null,"Rendimento colectável",null,"Limite Dedução Juros 2020"]
[null,null,null,null,null,"(Euros)"]
[null,null,null,null,null,"De","Até"]
[null,null,null,null,null,0,7112,450]
[null,null,null,null,null,{"$f":"G185","v":7112},30000,{"$f":"296+((450-296)*((30000-H36)/(30000-F186)))","v":497.85249912617962}]
[]
[]
[]
[]
[]
[]
[]
[]
[]
[]
[]
[]
[]
[]
[]
[]
[]
[]
[]
[]
[]
[]
[null,null,null,null,null,null,null,null,null,null,null,null,null,null,null,null,"(1) Solteiro, (2) Casado"]
[]
[null,null,null,null,null,null,null,null,null,null,null,null,null,null,null,{"$f":"C87","v":1}]

{"sheet":"Capa","index":1,"n_rows":0,"n_cols":0,"rows_kept":0,"cut":false,"hidden":false,"merged":[]}

{"sheet":"Simular IRS 2020","index":2,"n_rows":82,"n_cols":12,"rows_kept":82,"cut":false,"hidden":false,"merged":[[27,1,29,1],[65,4,65,5],[66,4,66,5],[43,6,43,7],[62,3,62,9],[33,1,48,1],[34,6,34,7],[41,6,41,7],[28,6,28,7],[32,9,32,12],[49,1,58,1],[53,6,53,7],[32,6,32,7],[45,6,45,7],[36,6,36,7],[47,6,47,7],[1,1,2,11],[6,1,13,1],[21,6,21,9],[23,1,26,1],[24,6,24,7],[23,6,23,7],[7,5,7,6],[9,5,9,6],[81,1,82,1],[85,1,85,12],[75,11,76,14],[73,4,73,5],[75,4,75,5],[76,4,76,5],[78,4,78,5],[74,4,74,5],[77,4,77,5],[71,4,71,5],[70,4,70,5],[69,4,69,5],[72,4,72,5],[55,6,55,7],[57,6,57,7],[67,4,67,5]]}
[]
[]
[]
[]
[]
[null,"Passo 1",null,"Informação pessoal"]
[]
[null,null,null,"Estado civil"]
[]
[null,null,null,"Tributação Separada / Tributação Conjunta"]
[]
[null,null,null,"Nº de Dependentes com 3 anos ou menos",null,0]
[]
[null,null,null,"Nº de Dependentes com mais de 3 anos",null,0]
[]
[null,null,null,"Nº de Ascendentes",null,0]
[]
[null,null,null,"Idade Sujeito Passivo A"]
[]
[null,null,null,"Idade Sujeito Passivo B"]
[]
[]
[null,"Passo 2",null,"Rendimentos"]
[null,"Categoria A",null,null,null,null,"Sujeito Passivo A",null,null,null,null,"Sujeito Passivo B"]
[null,null,null,"Rendimentos do trabalho dependente"]
[]
[]
[null,"Categoria H"]
[null,null,null,"Pensões de velhice"]
[]
[]
[]
[null,"Passo 3",null,"Deduções à coleta do IRS, incluindo benefícios fiscais"]
[null,"Deduções\nà coleta"]
[null,null,null,"Despesas de saúde e prémios de seguros de saúde"]
[]
[null,null,null,"Despesas de educação do agregado familiar"]
[]
[null,null,null,"Despesas com aquisição de imóvel para habitação própria permanente"]
[null,null,null,"Ano do contrato (preenchimento obrigatório)"]
[]
[null,null,null,"Juros"]
[]
[null,null,null,"Despesas com rendas para habitação própria permanente"]
[]
[null,null,null,"Despesas gerais (outras não referidas acima)"]
[]
[null,null,null,"Encargos com pensões de alimentos"]
[]
[]
[]
[null,null,null,"Contribuições para Planos Poupança Reforma (PPR's)"]
[]
[null,null,null,"Sujeito Passivo A"]
[]
[null,null,null,"Sujeito Passivo B"]
[]
[null,null,null,"Encargos com donativos"]
[]
[]
[]
[]
[null,null,null,{"$f":"IF('BIG SIMULATOR'!C86=\"\",\"Falta preencher dados\",\"\"&'BIG SIMULATOR'!C86&\"\"&IF('BIG SIMULATOR'!C87=1,\"\",\", \"&'BIG SIMULATOR'!C97)&\"\"&\", \"&IF('BIG SIMULATOR'!C90>1,\"\"&'BIG SIMULATOR'!C90&\" filhos\",IF('BIG SIMULATOR'!C90=1,\"\"&'BIG SIMULATOR'!C90&\" filho\",\"sem filhos\")))&\", \"&IF('BIG SIMULATOR'!C91=0,\" sem ascendentes\",IF('BIG SIMULATOR'!C91=1,\"\"&'BIG SIMULATOR'!C91&\" ascendente\",\"\"&'BIG SIMULATOR'!C91&\" ascendentes\"))","v":"0, sem filhos,  sem ascendentes"}]
[]
[]
[null,null,null,"Rendimento bruto",2019,null,2020]
[null,null,null,"Rendimento bruto",{"$f":"IFERROR(+'BIG SIMULATOR'!$M$90,0)","v":0},null,{"$f":"IFERROR(+'BIG SIMULATOR'!$M$90,0)","v":0}]
[null,null,null,"IRS antes de deduções (1)",{"$f":"'BIG SIMULATOR'!G44","v":0},null,{"$f":"'BIG SIMULATOR'!H44","v":0}]
[null,null,null,"Deduções à coleta:"]
[null,null,null,"       Deduções por dependente / ascendente",{"$f":"'BIG SIMULATOR'!G47","v":0},null,{"$f":"'BIG SIMULATOR'!H47","v":0}]
[null,null,null,"       Despesas gerais",{"$f":"'BIG SIMULATOR'!G48","v":0},null,{"$f":"+'BIG SIMULATOR'!H48","v":0}]
[null,null,null,"       Saúde / Educação / Imóveis / Pensão de alimentos",{"$f":"'BIG SIMULATOR'!G55","v":0},null,{"$f":"'BIG SIMULATOR'!H55","v":0}]
[null,null,null,"       Benefícios fiscais",{"$f":"'BIG SIMULATOR'!G58","v":0},null,{"$f":"'BIG SIMULATOR'!H58","v":0}]
[null,null,null,"Total deduções à coleta ou limite (2)",{"$f":"'BIG SIMULATOR'!G63","v":0},null,{"$f":"'BIG SIMULATOR'!H63","v":0}]
[null,null,null,"Mínimo de existência (3)",{"$f":"+'BIG SIMULATOR'!G75","v":0},null,{"$f":"+'BIG SIMULATOR'!H75","v":0}]
[null,null,null," Imposto final (1) - (2) - (3)",{"$f":"'BIG SIMULATOR'!G44-'BIG SIMULATOR'!G63-'BIG SIMULATOR'!G75","v":0},null,{"$f":"'BIG SIMULATOR'!H44-'BIG SIMULATOR'!H63-'BIG SIMULATOR'!H75","v":0}]
[null,null,null,"Rendimento líquido de IRS",{"$f":"'BIG SIMULATOR'!G80","v":0},null,{"$f":"'BIG SIMULATOR'!H80","v":0}]
[null,null,null,"Diferença de rendimento líquido face a 2019",null,null,{"$f":"'BIG SIMULATOR'!H81","v":0}]
[null,null,null,"Taxa efetiva",{"$f":"'BIG SIMULATOR'!G78","v":0},null,{"$f":"'BIG SIMULATOR'!H78","v":0}]
[]
[]
[null,null,null,"Caso o imposto final seja inferior a 25 €, não haverá lugar ao pagamento de qualquer imposto"]

{"sheet":"Informações 2020","index":3,"n_rows":72,"n_cols":7,"rows_kept":72,"cut":false,"hidden":false,"merged":[[1,3,1,6],[9,2,9,6],[11,2,11,6],[26,2,26,6],[3,2,3,6],[22,2,22,6],[23,2,23,6],[24,2,24,6],[5,2,5,6],[7,2,7,6],[8,2,8,6],[20,2,20,6],[13,2,13,6],[15,2,15,6],[17,2,17,6],[18,2,18,6],[71,2,71,4],[72,2,72,4],[54,2,54,6],[56,2,56,6],[65,2,65,4],[66,2,66,4],[62,2,62,6],[70,2,70,4],[64,2,64,4],[58,2,58,6],[16,2,16,6],[19,2,19,6],[34,2,34,6],[36,2,36,6],[31,2,31,6],[25,2,25,6],[27,2,27,6],[38,2,38,6],[30,2,30,6],[32,2,32,6],[40,2,40,6],[42,2,42,6],[25,9,25,13],[26,9,26,13],[27,9,27,13],[28,2,28,6],[29,2,29,6],[44,2,44,6],[46,2,46,6],[48,2,48,6],[69,2,69,4],[52,2,52,6],[60,2,60,6],[50,2,50,6],[67,2,67,4],[68,2,68,4]]}
[]
[]
[]
[]
[]
[null,null,"Deduções por dependentes e ascendentes"]
[]
[null,null,"À coleta do IRS devida pelos sujeitos passivos, é dedutível:"]
[null,null,"a) € 600 por cada dependente (acresce € 126 e € 300, caso seja o primeiro ou seguintes dependentes com idade igual ou inferior a 3 anos, respetivamente);"]
[null,null,"b) € 525 por cada ascendente (acresce € 110 se existir apenas um ascendente no agregado familiar).*"]
[]
[null,null,"* O ascendente terá que viver em comunhão de habitação com o sujeito passivo e não poderá auferir rendimento superior à pensão mínima do regime geral"]
[]
[null,null,"Deduções por despesas gerais"]
[]
[null,null,"35% do valor suportado por qualquer membro do agregado familiar:"]
[null,null,"● limite global de € 250 para cada sujeito passivo;"]
[null,null,"● a dedução opera no ano em que as faturas foram emitidas;"]
[null,null,"● para beneficiar da dedução os sujeitos passivos devem pedir ao emitente a inclusão do seu número de identificação fiscal nas faturas;"]
[null,null,"● o valor da dedução é apurado com base nas faturas comunicadas à Autoridade Tributária (AT) pelos emitentes até 25 de fevereiro do ano seguinte ao da sua emissão;"]
[null,null,"45% do valor suportado por qualquer membro do agregado familiar com o limite global de € 335, nas famílias monoparentais."]
[]
[null,null,"Dedução por despesas de saúde"]
[]
[null,null,"15% do valor suportado por qualquer membro do agregado familiar:"]
[null,null,"● limite global de € 1.000;"]
[null,null,"●  são elegíveis para dedução as faturas que titulem prestações de serviços e aquisições de bens, isentos de IVA ou tributados à taxa reduzida, nas seguintes atividades:"]
[null,null,"     - atividade de saúde humana;"]
[null,null,"     - comércio a retalho de produtos farmacêuticos, em estabelecimentos especializados;"]
[null,null,"     - comércio a retalho de produtos médicos e ortopédicos, em estabelecimentos especializados;"]
[null,null,"                        - comércio a retalho de material ótico, em estabelecimentos especializados"]
[null,null," - prémios de seguros de saúde."]
[null,null,"●  são elegíveis para dedução as faturas que titulem prestações de serviços e aquisições de bens, tributados à taxa normal de IVA, desde que devidamente justificados através de receita médica."]
[]
[null,null,"Dedução por despesas com educação"]
[null,null,"ã"]
[null,null,"30% do valor suportado por qualquer membro do agregado familiar com o limite global de € 800. Este limite pode ser aumentado em € 200, quando a diferença seja relativa a arrendamento de imóvel ou de parte de imóvel, a membros do agregado familiar que não tenham mais de 25 anos (cuja localização se situe a uma distância superior a 50 Kms da residência permanente);"]
[]
[null,null,"Majoração de 10% do valor de despesas suportadas por estudantes que frequentem estabelecimentos de ensino situados em território do interior e regiões autónomas, caso em que o limite global acima referido é elevado para € 1.000, se derivado deste tipo de despesas."]
[]
[null,null,"Dedução por encargos com imóveis"]
[]
[null,null,"15% do valor suportado por qualquer membro do agregado familiar, relativamente a rendas para fins de habitação permanente, com o limite de € 502. Este limite poderá ser superior, consoante o rendimento coletável do agregado familiar. No caso de transferência de residência permanente para um território do interior, o limite poderá ser aumentado para € 1,000, durante 3 anos;"]
[]
[null,null,"15% do valor suportado por qualquer membro do agregado familiar, relativamente a juros de dívidas, por contratos celebrados até 31 de dezembro de 2011, contraídas para aquisição, construção ou beneficiação de imóveis para fins de habitação permanente ou arrendamento, com o limite de € 296. Este limite poderá ser superior, consoante o rendimento coletável do agregado familiar;"]
[]
[null,null,"Dedução por exigência de fatura"]
[]
[null,null,"15% do IVA suportado, por qualquer membro do agregado familiar que conste de faturas que titulem determinadas prestações de serviço (manutenção e reparação de veículos automóveis e motociclos, alojamento, restauração e similares, atividades de salões de cabeleireiro e institutos de beleza e atividades veterinárias) e dedução de 100% do IVA suportado, por qualquer membro do agregado familiar com aquisição de passes mensais para utilização de transportes públicos;"]
[]
[null,null,"Despesas com pensões de alimentos"]
[]
[null,null,"20% dos encargos com pensões de alimentos, desde que resultantes de sentença judicial ou acordo judicialmente homologado"]
[]
[null,null,"Encargos com donativos"]
[]
[null,null,"25% dos donativos destinados a igrejas, instituições religiosas, instituições de caridade, museus, escolas, bibliotecas e outras entidades de cariz social, cultural ou científico reconhecidas pelo Estado, até ao limite de 15% da coleta"]
[]
[null,null,"Contribuições para Planos Poupança Reforma (PPR)"]
[]
[null,null,"20% do valor aplicado com o limite de € 300, € 350 ou € 400 consoante a idade do sujeito passivo."]
[]
[null,null,"Taxas IRS (para 2020)"]
[]
[null,null,"Rendimento Coletável (€)",null,null,"Taxas","Parcela a abater (€)"]
[null,null,"Até 7.112",null,null,"14,5%",0]
[null,null,"De mais de 7.112 até 10.732",null,null,0.23,604.54320500000017]
[null,null,"De mais de 10.732 até 20.322",null,null,"28,5%",1194.8046929999998]
[null,null,"De mais de 20.322 até 25.075",null,null,0.35,2515.6335175699996]
[null,null,"De mais de 25.075 até 36.967",null,null,0.37,3017.2747499999996]
[null,null,"De mais de 36.967 até 80.882",null,null,0.45,5974.5367201599993]
[null,null,"Superior a 80.882",null,null,0.48,8401.2050303999968]

{"sheet":"Disclaimer","index":4,"n_rows":45,"n_cols":3,"rows_kept":45,"cut":false,"hidden":false,"merged":[]}
[]
[]
[]
[]
[]
[]
[]
[]
[]
[null,null,"Simulador não prevê as seguintes situações"]
[]
[null,null,"- Residentes fiscais nos Açores e na Madeira;                                                                                                                                                                                                                                                                         "]
[null,null,"- Sujeitos passivos deficientes;"]
[null,null,"- Agregados Familiares em que os dependentes ou os ascendentes aufiram rendimentos;      "]
[null,null,"- Situações de guarda conjunta de dependentes."]
[]
[null,null,"Pressupostos da estimativa de imposto"]
[]
[null,null,"- As simulações de imposto encontram-se limitadas às categorias de rendimentos e despesas incluídas no simulador;"]
[null,null,"- As estimativas disponibilizadas são meramente ilustrativas e baseadas na interpretação da PwC da Proposta de Lei n.º 69/XXII/2019, relativamente ao Orçamento de Estado para 2020;"]
[null,null,"- As simulações de imposto não consideram o mínimo de existência (i.e. a não aplicação das taxas progressivas) para agregados familiares com três ou mais dependentes com rendimentos baixos."]
[]
[null,null,"Pensões"]
[]
[null,null,"- No cálculo da dedução específica das pensões, considera-se que o valor de contribuições obrigatórias para regimes de proteção social e para subsistemas legais de saúde é inferior a € 4.104."]
[]
[null,null,"Deduções à coleta"]
[]
[null,null,"Despesas de educação"]
[null,null,"- O simulador não contempla as situações de despesas relativas a arrendamento de imóvel de estudantes que frequentem um estabelecimento de ensino a uma distância superior a 50 km da sua residência permanente nem a majoração dos encargos incorridos por estudantes que frequentem estabelecimentos de ensino situados no interior e nas regiões autónomas."]
[]
[null,null,"Encargos com imóveis"]
[null,null,"- O simulador não contempla a majoração do limite de dedução por encargos com imóveis, referente à transferência de residência permanente para um território do interior."]
[]
[null,null,"Encargos com donativos"]
[null,null,"- Assume-se por defeito uma majoração de 130%, sem qualquer limitação, dos encargos com donativos. No entanto, a majoração destes encargos dependerá da natureza da entidade beneficiária do mesmo."]
[]
[null,null,"Exigência de fatura"]
[null,null,"- O simulador não contempla a dedução referente à exigência de fatura."]
[]
[null,null,"Tributação separada"]
[null,null,"- No valor das despesas referentes a educação, saúde e encargos com imóveis, deverá colocar a totalidade das despesas incorridas pelo seu agregado familiar;"]
[null,null,"- No valor das despesas gerais e familiares, deverá colocar a totalidade das despesas incorridas por si e 50% das despesas incorridas pelos seus dependentes;"]
[null,null,"- No valor dos donativos, deverá colocar a totalidade dos donativos efetuados por si e 50% do valor dos donativos efetuados pelos seus dependentes;"]
[null,null,"        - No valor das pensões de alimentos, deverá colocar unicamente o valor de pensões de alimentos pagas por si."]

{"sheet":"Ajuda","index":5,"n_rows":0,"n_cols":0,"rows_kept":0,"cut":false,"hidden":false,"merged":[]}